Cogmind - Beta 9.4 @@@ ROGUE MODE // 2020.01.26 @ 16:43:35 Player: derk Result: Destroyed self with Mini Grenade Launcher Performance ------------- Evolutions (0) 0 Regions Visited (2) 400 Robots Destroyed (33) 165 Value Destroyed (347) 347 Prototype IDs (2) 40 Alien Tech Used (0) 0 Bonus (0) 0 TOTAL SCORE: 952 Bonus ------- None Cogmind --------- Core Integrity 0/250 Matter 290/300 Energy 125/125 System Corruption 7% Temperature Cool (0) Movement Hovering (80) Location -10/Mines Parts ------- > --- POWER (1) -------- Light Ion Engine > --- PROPULSION (2) --- Combat Airjet > --- UTILITY (2) ------ Medium Storage Unit > --- WEAPON (2) ------- Assault Rifle Mini Grenade Launcher > --- INVENTORY (8) ---- Light Ion Engine Large Storage Unit Large Storage Unit EM Pulse Gun Small Laser Hammer Mining Claw Peak State ------------ > --- POWER ------------ Light Ion Engine > --- PROPULSION ------- Combat Airjet > --- UTILITY ---------- Medium Storage Unit > --- WEAPON ----------- Assault Rifle Mini Grenade Launcher > --- INVENTORY -------- Light Ion Engine Large Storage Unit EM Pulse Gun Mining Claw [Rating: 10] Favorites ----------- Power Ion Engine Engine Ion Engine Propulsion Light Treads Treads Light Treads Wheel Compact Wheel Hover Unit Combat Airjet Utility Small Storage Unit Storage Small Storage Unit Weapon Assault Rifle Energy Gun Medium Laser Ballistic Gun Assault Rifle Launcher Mini Grenade Launcher Build | -11 -10 -10 ------- Run | Scr Mat Min Slots Evolved . | . . . Power . | . . . Propulsion . | . . . Utility . | . . . Weapon . | . . . Parts Attached 28 | 7 11 10 Power 4 | 1 1 2 Engine 4 | 1 1 2 Core . | . . . Reactor . | . . . Propulsion 9 | 2 4 3 Treads 2 | . 2 . Leg . | . . . Wheel 6 | 2 2 2 Hover 1 | . . 1 Flight . | . . . Utility 6 | 2 3 1 Device . | . . . Storage 6 | 2 3 1 Processor . | . . . Hackware . | . . . Protection . | . . . Artifact . | . . . Weapon 9 | 2 3 4 Energy Gun 1 | . 1 . Energy Cannon . | . . . Ballistic Gun 5 | 2 1 2 Ballistic Cannon . | . . . Launcher 3 | . 1 2 Special Weapon . | . . . Impact Weapon . | . . . Slashing Weapon . | . . . Piercing Weapon . | . . . Special Melee Weapon . | . . . Unidentified Prototypes . | . . . Parts Lost 7 | . 1 6 Power 1 | . . 1 Propulsion 3 | . . 3 Utility . | . . . Weapon 3 | . 1 2 Highest Loss Streak 6 | . 1 6 Average Slot Usage (%) 94 | . 99 58 Engine 13 | . 14 8 Treads 14 | . 17 . Wheel 9 | . 10 4 Hover 1 | . . 7 Storage 25 | . 28 11 Energy Gun 3 | . 4 . Ballistic Gun 22 | . 23 18 Launcher 1 | . . 7 Naked Turns . | . . . Heaviest Build 33 | 17 33 32 Greatest Support 40 | 26 40 32 Greatest Overweight (x) 10 | 2 . 10 Average Overweight (x) . | . . . Largest Inventory Capacity 14 | 8 14 14 Average Capacity 10 | 6 11 7 Most Carried 14 | 6 14 14 Average Carried 9 | 3 10 6 Final Capacity 14 | 8 14 8 Final Carried 14 | 6 14 7 Class Distribution -------------------- 61% | Mutant 38% | Scavenger-Mutant Dominant Class ---------------- Mutant | -10/Materials Scavenger-Mutant | -10/Mines Resources | -11 -10 -10 ----------- Run | Scr Mat Min Matter Collected 913 | 273 495 145 Remotely . | . . . Salvage Created 890 | 85 752 53 Parts 52 | 3 46 3 Haulers Intercepted 2 | . 2 . Recyclers Shooed 5 | . 5 . Parts Field Recycled . | . . . Retrieved Matter . | . . . Parts Self-Destructed . | . . . Prevented . | . . . Kills | -11 -10 -10 ------- Run | Scr Mat Min Combat Hostiles Destroyed 22 | . 14 8 Guns 17 | . 13 4 AOE 5 | . 1 4 Classes Destroyed 8 | 1 5 2 Worker 1 | . 1 . Tunneler 1 | . . 1 Hauler 2 | . 2 . Recycler 5 | 1 4 . Watcher 2 | . 2 . Swarmer 9 | . 9 . Grunt 5 | . 5 . Assembled 8 | . . 8 Best Kill Streak 6 | 1 6 6 Combat Bots Only 5 | . 3 5 Max Kills in Single Turn 3 | 1 1 3 Gunslinging . | . . . Exploded 3 | . 1 3 Melee . | . . . Uniques/NPCs Destroyed . | . . . Combat | -11 -10 -10 -------- Run | Scr Mat Min Damage Taken 1200 | . 542 658 Core 266 | . 86 180 Absorbed by Shields . | . . . Core Remaining (%) 100 | 100 . . Volleys Fired 85 | 4 67 14 Largest 2 | 2 2 2 Hottest 70 | 40 70 40 Shots Fired 159 | 8 129 22 Gun 152 | 8 127 17 Cannon . | . . . Launcher 7 | . 2 5 Special . | . . . Kinetic 126 | 8 101 17 Thermal 26 | . 26 . Explosive 7 | . 2 5 Electromagnetic . | . . . Robot Hit Streak 11 | 6 11 5 Robot Miss Streak 5 | 1 5 3 Penetration Max . | . . . Secondary Targets 3 | . 1 2 Max Gunslinging Chain 1 | . 1 1 Shots Hit Robots 93 | 6 75 12 Core Hits 63 | 2 38 23 Critical Hits . | . . . Critical Kills . | . . . Critical Parts Destroyed . | . . . Melee Attacks . | . . . Impact . | . . . Slashing . | . . . Piercing . | . . . Sneak Attacks . | . . . Combat Hostiles . | . . . Follow-up Attacks . | . . . Damage Inflicted 1668 | 69 1074 525 Guns 1141 | 69 952 120 Cannons . | . . . Explosions 527 | . 122 405 Melee . | . . . Ramming . | . . . Kinetic 928 | 69 739 120 Thermal 213 | . 213 . Explosive 527 | . 122 405 Electromagnetic . | . . . Impact . | . . . Slashing . | . . . Piercing . | . . . Highest Corruption 7 | . . 7 Average Corruption 7 | . . 7 Corruption Purged . | . . . Effects 4 | . . 4 Message Errors 2 | . . 2 Targeting Errors 1 | . . 1 Weapon Failures 1 | . . 1 Overload Shots . | . . . Overflow Damage 9 | . . 9 Projectiles . | . . . Explosions 9 | . . 9 Melee . | . . . Knockbacks . | . . . Impact . | . . . Kinetic . | . . . Secondary . | . . . Self-Inflicted Damage 63 | . . 63 Shots 3 | . . 3 Rammed . | . . . Targets Rammed . | . . . Kicked . | . . . Crushed . | . . . Highest Temperature 100 | . 72 100 Average Temperature 30 | . 26 54 Received Heat Transfer 431 | . 111 320 Siege Activations . | . . . Robots Corrupted . | . . . Combat Hostiles . | . . . Parts Fried . | . . . Impact Corruptions . | . . . Robots Melted . | . . . Combat Hostiles . | . . . Parts Melted . | . . . Heat Transferred 629 | . 629 . Parts Sabotaged . | . . . Parts Stolen . | . . . Parts Stripped . | . . . Power Chain Reactions . | . . . Missiles Intercepted . | . . . Alert | -11 -10 -10 ------- Run | Scr Mat Min Peak Influence 244 | 5 244 36 Average Influence 121 | 1 148 11 Maximum Alert Level 1 | . 1 . Low Security (%) 65 | 100 57 100 Level 1 34 | . 42 . Level 2 . | . . . Level 3 . | . . . Level 4 . | . . . Level 5 . | . . . High Security . | . . . Max Security . | . . . Squads Dispatched 2 | . 2 . Investigation . | . . . Extermination . | . . . Reinforcement 2 | . 2 . Assault . | . . . Garrison . | . . . Intercept . | . . . Construction Impeded . | . . . Haulers Reinforced . | . . . Stealth | -11 -10 -10 --------- Run | Scr Mat Min Distress Signals . | . . . Communications Jammed . | . . . Distress Signals . | . . . Times Spotted 50 | . 28 22 Peak Tracking Total 19 | . 4 19 Tactical Retreats 5 | . 2 3 Traps | -11 -10 -10 ------- Run | Scr Mat Min Traps Triggered . | . . . Indirectly . | . . . Trap Hack Attempts . | . . . Triggered . | . . . Disarmed . | . . . Reprogrammed . | . . . Reused . | . . . Traps Extracted . | . . . Installed . | . . . Triggered . | . . . Machines | -11 -10 -10 ---------- Run | Scr Mat Min Machines Disabled . | . . . Max in Single Turn . | . . . Machines Sabotaged . | . . . Garrisons Compromised . | . . . Overloaded Fab Kills . | . . . Fab Network Shutdowns . | . . . Hacking | -11 -10 -10 --------- Run | Scr Mat Min Machines Accessed 3 | . 3 . Terminals 3 | . 3 . Fabricators . | . . . Repair Stations . | . . . Recycling Units . | . . . Scanalyzers . | . . . Garrison Access . | . . . Total Hacks 5 | . 5 . Successful 4 | . 4 . Failed 1 | . 1 . Catastrophic . | . . . Database Lockouts . | . . . Manual 4 | . 4 . Terminals 5 | . 5 . Fabricators . | . . . Repair Stations . | . . . Recycling Units . | . . . Scanalyzers . | . . . Garrison Access . | . . . Terminal Hacks 2 | . 2 . Prototype ID Bank 1 | . 1 . Branch Access Points 1 | . 1 . Fabricator Hacks . | . . . Repair Station Hacks . | . . . Recycling Unit Hacks . | . . . Scanalyzer . | . . . Garrison Access Hacks . | . . . Unauthorized Hacks 4 | . 4 . Terminals 2 | . 2 . Track 1 | . 1 . Assimilate 1 | . 1 . Fabricators . | . . . Repair Stations . | . . . Recycling Units . | . . . Scanalyzers . | . . . Garrison Access . | . . . Data Cores Recovered . | . . . Used . | . . . Hacking Detections 1 | . 1 . Full Trace Events . | . . . Feedback Events . | . . . Feedback Blocked . | . . . Robot Schematics Acquired . | . . . Robots Built . | . . . Matter . | . . . Time . | . . . Total Robot Build Rating . | . . . Part Schematics Acquired . | . . . Parts Built . | . . . Matter . | . . . Time . | . . . Total Part Build Rating . | . . . Parts Repaired . | . . . Time . | . . . Parts Recycled . | . . . Recycled Matter . | . . . Retrieved Matter . | . . . Retrieved Components . | . . . Parts Scanalyzed . | . . . Part Schematics Acquired . | . . . Parts Damaged . | . . . Bothacking | -11 -10 -10 ------------ Run | Scr Mat Min Used RIF Installer . | . . . Robots Hacked . | . . . Non-combat . | . . . Combat . | . . . Robot Hacks Applied . | . . . Relay Couplers Released . | . . . Robots Rewired . | . . . Allies Hacked . | . . . Hacks Repelled . | . . . Allies | -11 -10 -10 -------- Run | Scr Mat Min Total Allies . | . . . Largest Group . | . . . Highest-Rated Group . | . . . Highest-Rated Ally . | . . . Total Orders . | . . . Ally Attacks . | . . . Total Damage . | . . . Kills . | . . . Allies Corrupted . | . . . Allies Melted . | . . . Intel | -11 -10 -10 ------- Run | Scr Mat Min Robot Analysis Total . | . . . Derelict Logs Recovered 1 | . . 1 Drone Launches . | . . . Drone Recoveries . | . . . Exploration | -11 -10 -10 ------------- Run | Scr Mat Min Turns Passed 1003 | 65 812 126 Spaces Moved 565 | 41 436 88 Core 19 | 8 . 11 Treads 176 | . 176 . Legs . | . . . Wheels 303 | 33 260 10 Hover 67 | . . 67 Flight . | . . . Fastest Speed 50 | 50 90 50 Average Speed 114 | 90 123 84 Slowest Speed 550 | 150 160 550 Overloaded Moves . | . . . Propulsion Burnouts . | . . . Robots Hopped . | . . . Cave-ins Triggered . | . . . Exploration Rate (%) 32 | 3 77 17 Regions Visited 2 Branch Regions 1 Pre-discovered Areas 1 | . . 1 Known Exits Taken 1 | . 1 . Unknown Exits Taken 1 | 1 . . Scrap Searched . | . . . Spaces Dug . | . . . Terrain Destroyed 50 | . 9 41 Melee . | . . . Projectile . | . . . AOE 50 | . 9 41 Actions | -11 -10 -10 --------- Run | Scr Mat Min Total 759 | 57 582 120 Wait 52 | . 52 . Move 563 | 40 435 88 Hop . | . . . Pick Up 20 | 6 11 3 Fast Attach 12 | 7 . 5 Attach 5 | . 1 4 Detach . | . . . Swap 11 | . 10 1 Drop 11 | . 6 5 Fire 85 | 4 67 14 Melee . | . . . Ram . | . . . Kick . | . . . Crush . | . . . Escape Stasis . | . . . Rewire . | . . . Trap . | . . . Miscellaneous . | . . . Route ------- -11/Scrapyard -10/Materials (discovered 2 exits: [*Mat] / *Min) -10/Mines History --------- Turn | Location | Event 10 | -11/Scrapyard | Discovered new exit (range 16) 66 | -11/Scrapyard | Entered Materials 323 | -10/Materials | Build established: Mutant 653 | -10/Materials | Identified exit to Mines 780 | -10/Materials | Discovered new exit (range 11) 878 | -10/Materials | Entered Mines 879 | -10/Mines | Assembled infested the area 886 | -10/Mines | Core integrity fell below 50% 917 | -10/Mines | Core integrity fell below 20% 928 | -10/Mines | Lost 6 parts (1p3n2w) 995 | -10/Mines | Build established: Scavenger-Mutant 1004 | -10/Mines | Destroyed self with Mini Grenade Launcher Last Messages --------------- 00941_ Acquired Mni. Grenade Launcher. 00943_ Acquired 33 matter. 00944_ Acquired 3 matter. 00946_ Acquired 17 matter. 00950_ The unstable cave ceiling collapses. 00950_ Tractor Beam crushed. 00951_ Acquired Com. Wheel. 00953_ Acquired 18 matter. 00955_ Dropped Com. Wheel. 00967_ The unstable cave ceiling collapses. 00969_ Acquired Lgt. Ion Engine. 00972_ The unstable cave ceiling collapses. 00974_ Acquired Med. Storage Unit. 00976_ Acquired Lrg. Storage Unit. 00977_ >A |E:YTMVC8ED2LDHN,P&U 00978_ Acquired Hammer. 00983_ Acquired derelict log, extracted data. World map updated: -8/Materials. 00993_ Acquired 20 matter. 00998_ Acquired Sml. Laser. Map ----- +----------------------------------------------------+ | ???????# !== #????????????????????? | | ???????# !%* #?????????????????????? | | ???????########## #?????????????????????? | | ???????????????# # " # ##?????????????????????? | | ???????????????## #??#??????????????????????? | | ???????????????## ##?????????????????????????? | | ??????????????## ####??????????????????????????? | | ??????????????# ###???????????????????????????? | | ?????????????## #???????????????????????????? | | ?????????????# % [ #???????????????????????????? | | ?????????????# ##???????????????????????????? | | ?????????????# * ##??????????????????????????? | | ?????????????# # #??????????????????????????? | | ?????????????# ##??????????????????????????? | | ????????????## #??????????????????????????? | | ????????????## = ##??????????????????????????? | | ????????????## ! ###????????????????????????? | | ????????????# ##???????????????????????? | | ????????????# *####????????????????????? | | ????????????# !! ##???????????????????? | | ????????????# ! * #???????????????????? | | ????????????# ####! ##???????????????????? | | ????????????## #??# #####??????????????????? | | ?????????????## #??# ## #??????????????????? | | ??????????????########??# #????????????????? | | ????????????????????????#@ a #????????????????? | | ????????????????????????# ##????????????????? | | ????????????????????##### #### #?????????????????? | | ????????????????????# #????????????????????? | | ????????????????????# """ #????????????????????? | | ????????????????????# """ #????????????????????? | | ????????????????????# """[ #????????????????????? | | ????????????????????# #????????????????????? | | ????????????????????# %*#????????????????????? | | ????????????????????# = #????????????????????? | | ????????????????????#########????????????????????? | | ?????????????????????????????????????????????????? | | | | | | | | | | | | | | | | | | | | | | | | | | | +----------------------------------------------------+ Best States ------------- Heat Dissipation 25 Energy Generation 10 Energy Capacity 250 Matter Stores 300 Matter Capacity 300 Sight Range 16 Terrain Scan Density 10 Evasion (%) 49 Recoil Reduction 2 Item Schematics ----------------- None Robot Schematics ------------------ None Fabricated ------------ Nothing Alien Tech Used ----------------- None Achievements -------------- None Challenges ------------ None Game ------ Seed AngularHeartPit Manual? 0 Play Time 00:11:58 Cumulative 50.6 hours Start 2020.01.26 @ 16:31:18 End 2020.01.26 @ 16:43:35 Sessions 1 Manual Loads 0 Difficulty Rogue Special Mode None Game No. 27 Rogue 27 Adventurer 0 Explorer 0 Win Type - Total 0 Types 0/0/0/0/0/0/0 Lore% 23 Gallery% 51 Achievement% 39 Wizard Run 0 Options --------- ASCII 0 Keyboard 0 Movement Numpad Keybinds 0 Fullscreen 1 Font 18/SmallcapsGlow Map View 76x50 Tactical HUD 1 Map Filters NONE Filters NONE Steam 1 RUN: 902d6677-1c63-481d-bd57-3045cccdc5e2